Workbook

Sheet Лист1
A1: Школа | C1: МАОУ "Гимназия №13 имени Э.А.Быкова" | F1: Утвердил: | G1: должность | H1: Директор
A2: Типовое примерное меню приготавливаемых блюд | G2: фамилия | H2: Денисова С.А.
A3: Возрастная категория | E3: 7-11 лет | G3: дата | J3: 2026
H4: день | I4: месяц | J4: год
A5: Неделя | B5: День недели | C5: Прием пищи | D5: Раздел меню | E5: Блюда | F5: Вес блюда, г | G5: Белки | H5: Жиры | I5: Углеводы | J5: Калорийность | K5: № рецептуры | L5: Цена
A6: 1 | B6: 1 | C6: Завтрак | D6: гор.блюдо | E6: каша жидкая молочная овсянная | F6: 200 | G6: 8 | H6: 12 | I6: 37 | J6: 294 | K6: 54-9к | L6: 15.29
E7: бутерброд с сыром | F7: 60 | G7: 3.5 | H7: 4.5 | I7: 0 | J7: 54.5 | K7: 54-1з | L7: 18.81
D8: гор.напиток | E8: какао с молоком сгущенным | F8: 200 | G8: 5 | H8: 4 | I8: 12 | J8: 107 | K8: 54-7гн | L8: 17.9
D9: фрукты | E9: яблоко свежее | F9: 150 | G9: 0 | H9: 0 | I9: 10 | J9: 47 | L9: 18
D11: итого | F11: =SUM(F6:F9) -> 610 | G11: =SUM(G6:G9) -> 16.5 | H11: =SUM(H6:H9) -> 20.5 | I11: =SUM(I6:I9) -> 59 | J11: =SUM(J6:J9) -> 502.5 | L11: =SUM(L6:L9) -> 70
A12: 1 | B12: 1 | C12: зватрак 2 | D12: закуска | E12: зеленый горошек после термобработки | F12: 60 | G12: 3 | H12: 0 | I12: 6 | J12: 36 | K12: пром | L12: 6.74
D13: 2блюдо | E13: котлета из говядины | F13: 90 | G13: 14 | H13: 12 | I13: 11 | J13: 75 | K13: 54-4м | L13: 28.17
D14: гарнир | E14: рис отварной | F14: 150 | G14: 4 | H14: 5 | I14: 38 | J14: 213 | K14: 54-6Г | L14: 12.92
D15: напиток | E15: компот из черной смородины | F15: 200 | G15: 0 | H15: 0 | I15: 12 | J15: 50.7 | K15: 54-12ХН | L15: 19.8
D16: хлеб бел | E16: хлеб пшеничный | F16: 30 | G16: 2 | H16: 0 | I16: 10 | J16: 50 | K16: пром | L16: 2.37
D18: итого | F18: =SUM(F12:F16) -> 530 | G18: =SUM(G12:G16) -> 23 | H18: =SUM(H12:H16) -> 17 | I18: =SUM(I12:I16) -> 77 | J18: =SUM(J12:J16) -> 424.7 | L18: =SUM(L12:L16) -> 70
A19: =A6 -> 1 | B19: =B6 -> 1 | C19: Обед | D19: закуска | E19: помидор в нарезке | F19: 60 | G19: 0 | H19: 0 | I19: 1 | J19: 4 | K19: пром
D20: 1 блюдо | E20: суп картофельный с гречкой | F20: 200 | G20: 8 | H20: 24 | I20: 19 | J20: 367 | K20: 54-1С | L20: 7.28
D21: 2 блюдо | E21: гуляш из говядины | F21: 100 | G21: 14 | H21: 11 | I21: 3.3 | J21: 169 | K21: 54-2м | L21: 45.94
D22: гарнир | E22: макароны отварные | F22: 150 | G22: 5 | H22: 5 | I22: 35 | J22: 208 | K22: 54-1г | L22: 7.67
D23: напиток | E23: компот из клубники свежемороженной | F23: 200 | G23: 0 | H23: 0 | I23: 10.5 | J23: 43 | K23: 54-1ХН | L23: 7.62
D24: хлеб бел. | E24: хлеб пшеничный | F24: 30 | G24: 2 | H24: 0 | I24: 10 | J24: 50 | K24: пром | L24: 1.49
D27: итого | F27: =SUM(F19:F26) -> 740 | G27: =SUM(G19:G26) -> 29 | H27: =SUM(H19:H26) -> 40 | I27: =SUM(I19:I26) -> 78.8 | J27: =SUM(J19:J26) -> 841 | L27: =SUM(L19:L26) -> 70
A28: =A6 -> 1 | B28: =B6 -> 1 | C28: Итого за день: | F28: =F11+F27 -> 1350 | G28: =G11+G27 -> 45.5 | H28: =H11+H27 -> 60.5 | I28: =I11+I27 -> 137.8 | J28: =J11+J27 -> 1343.5 | L28: =L11+L27 -> 140
A29: 1 | B29: 2 | C29: Завтрак | D29: гор.блюдо | E29: запеканка из творога со сгущеным молоком | F29: 160 | G29: 24 | H29: 16 | I29: 22 | J29: 332 | K29: 54-1т | L29: 49.01
E30: бутерброд с джемом | F30: 60 | G30: 1.7 | H30: 2.8 | I30: 19.7 | J30: 111 | K30: 2ср2004 | L30: 10.4
D31: гор.напиток | E31: чай с сахаром | F31: 200 | G31: 0 | H31: 0 | I31: 7 | J31: 28 | K31: 54-2гн | L31: 2.12
D32: фрукты | E32: яблоко свежее | F32: 150 | G32: 0 | H32: 0 | I32: 5 | J32: 60 | K32: пром | L32: 8.47
D35: итого | F35: =SUM(F29:F34) -> 570 | G35: =SUM(G29:G34) -> 25.7 | H35: =SUM(H29:H34) -> 18.8 | I35: =SUM(I29:I34) -> 53.7 | J35: =SUM(J29:J34) -> 531 | L35: =SUM(L29:L34) -> 70
A36: 1 | B36: 2 | C36: завтрак 2 | D36: закуска | E36: огурец в нарезке | F36: 60 | G36: 0 | H36: 0 | I36: 2 | J36: 9 | K36: 54-2з | L36: 5.01
D37: 2блюдо | E37: биточки рыбные | F37: 90 | G37: 9 | H37: 4 | I37: 4 | J37: 80 | K37: 54-2р | L37: 40.11
D38: гарнир | E38: картофельное пюре | F38: 150 | G38: 3 | H38: 6 | I38: 24 | J38: 158 | K38: 54-11г | L38: 12.02
D39: напиток | E39: компот из вишни свежемороженной | F39: 200 | G39: 0 | H39: 0 | I39: 11 | J39: 43 | K39: 54-1хн | L39: 10.72
D40: хлеб бел. | E40: хлеб пшеничный | F40: 60 | G40: 2 | H40: 0 | I40: 15 | J40: 73 | K40: пром | L40: 2.14
D43: итого | F43: 510 | G43: 19 | H43: 17 | I43: 63 | J43: 492 | K43: пром | L43: 70
A44: =A29 -> 1 | B44: =B29 -> 2 | C44: Обед | D44: закуска | E44: кукуруза после термической обработки | F44: 60 | G44: 0 | H44: 1 | I44: 16 | J44: 40 | K44: 54-14с
D45: 1 блюдо | E45: борщ с капустой и картофелем | F45: 200 | G45: 8 | H45: 25 | I45: 51 | J45: 461 | K45: 54-2с | L45: 8.71
D46: 2 блюдо | E46: тефтели из говядины | F46: 130 | G46: 8 | H46: 6 | I46: 5 | J46: 106 | K46: 54-8м | L46: 32.7
D47: гарнир | E47: каша гречневая рассыпчатая | F47: 150 | G47: 8 | H47: 7 | I47: 43 | J47: 262 | K47: 54-4г | L47: 10.37
D48: напиток | E48: компот из брусники свежемороженой | F48: 200 | G48: 0 | H48: 0 | I48: 10 | J48: 43 | K48: 54-1хн | L48: 15.96
D49: хлеб бел. | E49: хлеб пшеничный | F49: 31 | G49: 2 | H49: 0 | I49: 15 | J49: 73 | K49: пром | L49: 2.26
D50: хлеб черн.
D53: итого | F53: 751 | G53: =SUM(G44:G52) -> 26 | H53: =SUM(H44:H52) -> 39 | I53: =SUM(I44:I52) -> 140 | J53: =SUM(J44:J52) -> 985 | L53: 70
A54: =A29 -> 1 | B54: =B29 -> 2 | C54: Итого за день: | G54: =G35+G53 -> 51.7 | H54: =H35+H53 -> 57.8 | I54: =I35+I53 -> 193.7 | J54: =J35+J53 -> 1516 | L54: 140
A55: 1 | B55: 3 | C55: Завтрак | D55: гор.блюдо | E55: омлет натуральный сливочным маслом | F55: 105 | G55: 16.8 | H55: 26 | I55: 4.2 | J55: 316.1 | K55: 54-1о | L55: 37.83
E56: бутерброд с маслом | F56: 60 | G56: 0 | H56: 8 | I56: 0 | J56: 75 | K56: 53-19з | L56: 19.43
D57: гор.напиток | E57: кофейный напиток молоком | F57: 200 | G57: 0 | H57: 0 | I57: 7 | J57: 31 | K57: 54-9гн | L57: 12.74
D58: хлеб | E58: хлеб пшеничный | F58: 30 | G58: 2 | H58: 0 | I58: 10 | J58: 47 | K58: пром
D59: фрукты | E59: яблоко свежее | F59: 200 | G59: 0 | H59: 0 | I59: 5 | J59: 60 | K59: пром
D62: итого | F62: =SUM(F55:F61) -> 595 | G62: =SUM(G55:G61) -> 18.8 | H62: =SUM(H55:H61) -> 34 | I62: =SUM(I55:I61) -> 26.2 | J62: =SUM(J55:J61) -> 529.1 | L62: 70
D63: закуска | E63: соленый огурец в нарезке | F63: 60 | G63: 0 | H63: 0 | I63: 5 | J63: 10 | K63: 54-2з
A64: 1 | B64: 3 | C64: завтрак2 | D64: 2блюдо | E64: плов из филе курицы | F64: 230 | G64: 27 | H64: 8 | I64: 35 | J64: 319 | K64: 54-12м | L64: 60.09
D65: напиток | E65: компот из смеси суфофруктов | F65: 200 | G65: 0 | H65: 0 | I65: 23 | J65: 93 | K65: 54-7хн | L65: 6.8
D66: хлеб бел | E66: хлеб пшеничный | F66: 60 | G66: 2 | H66: 0 | I66: 10 | J66: 47 | K66: пром | L66: 3.11
D69: итого | F69: 550 | G69: =SUM(G62:G68) -> 47.8 | H69: =SUM(H62:H68) -> 42 | I69: =SUM(I62:I68) -> 99.2 | J69: =SUM(J64:J68) -> 459 | L69: 70
A70: =A55 -> 1 | B70: =B55 -> 3 | C70: Обед | D70: закуска | E70: зеленый горщшик после терм обр | F70: 60 | G70: 0 | H70: 0 | I70: 2 | J70: 9 | K70: пром
D71: 1 блюдо | E71: щи со св. капустой | F71: 200 | G71: 40 | H71: 20 | I71: 72 | J71: 620 | K71: 54-12с | L71: 16.85
D72: 2 блюдо | E72: котлета из курицы | F72: 90 | G72: 15 | H72: 4 | I72: 9 | J72: 128 | K72: 54-5м | L72: 30.16
D73: гарнир | E73: рис припущеный | F73: 150 | G73: 3 | H73: 5 | I73: 36 | J73: 206 | K73: 54-7г | L73: 12.63
D74: напиток | E74: компот из свежих яблок | F74: 200 | G74: 0 | H74: 0 | I74: 8 | J74: 33 | K74: 54-10хн | L74: 9.3
D75: хлеб черн. | E75: хлеб | F75: 30 | G75: 2 | H75: 0 | I75: 10 | J75: 47 | K75: пром | L75: 1.06
D78: итого | F78: =SUM(F70:F77) -> 730 | G78: =SUM(G70:G77) -> 60 | H78: =SUM(H70:H77) -> 29 | I78: =SUM(I70:I77) -> 137 | J78: =SUM(J70:J77) -> 1043 | L78: 70
A79: =A55 -> 1 | B79: =B55 -> 3 | C79: Итого за день: | F79: =F62+F78 -> 1325 | G79: =G62+G78 -> 78.8 | H79: =H62+H78 -> 63 | I79: =I62+I78 -> 163.2 | J79: =J62+J78 -> 1572.1 | L79: =L62+L78 -> 140
A80: 1 | B80: 4 | C80: Завтрак | D80: гор.блюдо | E80: каша пшенная мочная сливочным маслом | F80: 210 | G80: 8 | H80: 11 | I80: 39 | J80: 292 | K80: 54-6к | L80: 20.4
E81: бутерброд с колбасой Сервелат в/к | F81: 95 | G81: 4 | H81: 7 | I81: 7 | J81: 118 | K81: 6ср2004 | L81: 32.67
D82: гор.напиток | E82: чай с сахаром и лимоном | F82: 200 | G82: 0 | H82: 0 | I82: 7 | J82: 27 | K82: 54-2гн | L82: 3.68
E83: мини рулет | F83: 35 | G83: 15 | H83: 5 | I83: 59 | J83: 163 | K83: пром | L83: 13.25
D85: итого | F85: =SUM(F80:F84) -> 540 | G85: =SUM(G80:G84) -> 27 | H85: =SUM(H80:H84) -> 23 | I85: =SUM(I80:I84) -> 112 | J85: =SUM(J80:J84) -> 600 | L85: =SUM(L80:L84) -> 70
A86: 1 | B86: 4 | C86: завтрак2 | D86: закуска | E86: помидор свежий в нарезке | F86: 60 | G86: 0 | H86: =SUM(F86:G86) -> 60 | I86: 2.5 | J86: 11 | K86: 54-3з | L86: 7.31
D87: 2блюдо | E87: шницель из филе курицы | F87: 90 | G87: 14 | H87: 3.00 | I87: 9 | J87: 128 | K87: 54-м | L87: 36.81
D88: гарнир | E88: макароны с сыром | F88: 150 | G88: 8 | H88: 7 | I88: 30 | J88: 216 | K88: 54-3г | L88: 16.18
D89: напиток | E89: компот из малины свеже мор | F89: 200 | G89: 0 | H89: 0 | I89: 5 | J89: 43 | K89: 54-1хн | L89: 7.5
D90: хлебел | E90: хлеб пшеничный | F90: 30 | G90: 2 | H90: 0 | I90: 15 | J90: 47 | K90: пром | L90: 2.2
D93: итого | F93: 530 | G93: =SUM(G86:G92) -> 24 | H93: =SUM(H86:H92) -> 70 | I93: =SUM(I86:I92) -> 61.5 | J93: =SUM(J90) -> 47 | L93: 70
A94: =A80 -> 1 | B94: =B80 -> 4 | C94: Обед | D94: закуска | E94: нарезка св овощей | F94: 60 | G94: 0 | H94: 0 | I94: 2 | J94: 11 | K94: 54-5з
D95: 1 блюдо | E95: суп картофельный с вермишелью | F95: 200 | G95: 13 | H95: 10 | I95: 105 | J95: 556 | K95: 54-7с | L95: 5.9
D96: 2 блюдо | E96: рыба запеченная с овощами | F96: 120 | G96: 14 | H96: 13 | I96: 8 | J96: 207 | K96: 454 | L96: 30.91
D97: гарнир | E97: картофель отварной | F97: 150 | G97: 3 | H97: 5 | I97: 20 | J97: 139 | K97: 54-11г | L97: 11.21
D98: напиток | E98: компот из апельсин | F98: 200 | G98: 0 | H98: 0 | I98: 7 | J98: 28 | K98: 54-3гн | L98: 19.8
D99: хлеб бел. | E99: хлеб пшеничный | F99: 31 | G99: 2 | H99: 0 | I99: 15 | J99: 47 | K99: пром | L99: 2.18
D100: хлеб черн.
D103: итого | F103: =SUM(F94:F102) -> 761 | G103: =SUM(G94:G102) -> 32 | H103: =SUM(H94:H102) -> 28 | I103: =SUM(I94:I102) -> 157 | J103: =SUM(J94:J102) -> 988 | L103: 70
A104: =A80 -> 1 | B104: =B80 -> 4 | C104: Итого за день: | F104: =F85+F103 -> 1301 | G104: =G85+G103 -> 59 | H104: =H85+H103 -> 51 | I104: =I85+I103 -> 269 | J104: =J85+J103 -> 1588 | L104: 140
A105: 1 | B105: 5 | C105: Завтрак | D105: закуска | E105: кукуруза после термической обработки | F105: 60 | G105: 0 | H105: 0 | I105: 6 | J105: 70 | K105: прром | L105: 45.38
D106: гор.блюдо | E106: запеканка картофельная с мясом сл маслом | F106: 190 | G106: 24 | H106: 20 | I106: 31 | J106: 403 | K106: 54-13м
D107: гор.напиток | E107: чай молоком | F107: 200 | G107: 1 | H107: 0 | I107: 15 | J107: 65 | K107: 54-13хн | L107: 14.07
D108: хлеб | E108: хлеб пшеничный | F108: 31 | G108: 2 | H108: 0 | I108: 15 | J108: 73 | K108: пром | L108: 2.05
E109: бутерброд с сыром | F109: 60 | G109: 8 | H109: 1 | I109: 71 | J109: 36 | K109: 54-1з | L109: 8.5
D111: итого | G111: =SUM(G105:G110) -> 35 | H111: =SUM(H105:H110) -> 21 | I111: =SUM(I105:I110) -> 138 | J111: =SUM(J105:J110) -> 647 | L111: =SUM(L105:L110) -> 70
A112: 1 | B112: 5 | C112: завтрак2 | D112: закуска
D113: 2блюдо | E113: бифштекс "Адрон" | F113: 90 | G113: 14 | H113: 11 | I113: 6 | J113: 188 | K113: 54-4м | L113: 51.28
D114: гарнир | E114: гречка рассыпчатая отварная | F114: 200 | G114: 8 | H114: 6 | I114: 42 | J114: 262 | K114: 54-4г | L114: 9.15
D115: напиток | E115: компот из кураги | F115: 200 | G115: 2 | H115: 0 | I115: 28 | J115: 121 | K115: 54-5хн | L115: 8.7
D116: хлеб бел | E116: хлеб пшеничный | F116: 60 | G116: 2 | H116: 0 | I116: 15 | J116: 73 | L116: 0.87
D118: итого | F118: 550 | G118: =SUM(G113:G117) -> 26 | H118: =SUM(H113:H117) -> 17 | I118: =SUM(I113:I117) -> 91 | J118: =SUM(J113:J117) -> 644 | L118: 70
A119: 1 | B119: 5 | C119: обед | D119: закуска | E119: огурец свежий | F119: 60 | G119: 0 | H119: 0 | I119: 2 | J119: 12 | K119: 54-3з | L119: 6.74
D120: 1блюдо | E120: рассольник ленинградский | F120: 200 | G120: 2 | H120: 5 | I120: 15 | J120: 113 | K120: 54-4с
D121: 2 блюдо | E121: гуляш из филе курицы(80/50) | F121: 130 | G121: 14 | H121: 11 | I121: 8 | J121: 169 | K121: 54-2м | L121: 31.93
D122: гарнир | E122: капуста тушеная | F122: 150 | G122: 3 | H122: 5 | I122: 15 | J122: 121 | K122: 54-8г | L122: 11
D123: напиток | E123: компот из клюквы свежемороженая | F123: 200 | G123: 0 | H123: 0 | I123: 10 | J123: 43 | K123: 54-6хн | L123: 12.27
D124: хлеб бел. | E124: хлеб пшеничный | F124: 30 | G124: 2 | H124: 0 | I124: 11 | J124: 58 | K124: пром | L124: 0.86
D127: итого | F127: =SUM(F119:F126) -> 770 | G127: =SUM(G119:G126) -> 21 | H127: =SUM(H119:H126) -> 21 | I127: =SUM(I119:I126) -> 61 | J127: =SUM(J119:J126) -> 516 | L127: 70
A128: =A105 -> 1 | B128: =B105 -> 5 | C128: Итого за день: | F128: =F111+F127 -> 770 | G128: =G111+G127 -> 56 | H128: =H111+H127 -> 42 | I128: =I111+I127 -> 199 | J128: =J111+J127 -> 1163 | L128: =L111+L127 -> 140
A129: 2 | B129: 1 | C129: Завтрак | D129: закуска | E129: горошек зеленый после термической обработки | F129: 60 | G129: 3 | H129: 0 | I129: 6 | J129: 150 | K129: 57 | L129: 3.74
D130: гор.блюдо | E130: омлет натуральный с маслом сливочным | F130: 155 | G130: 13 | H130: 18 | I130: 3 | J130: 226 | K130: 54-1о | L130: 28.33
D131: гор.напиток | E131: какао на сгущеном молоком | F131: 200 | G131: 4 | H131: 3 | I131: 11 | J131: 86 | K131: 54-23гн | L131: 17.9
D132: хлеб | E132: хлеб пшеничный | F132: 31 | G132: 2 | H132: 2 | I132: 11 | J132: 56 | K132: пром | L132: 1.12
D133: фрукт | E133: яблоко свежее | F133: 150 | G133: 0 | H133: 0 | I133: 9 | J133: 47 | K133: пром | L133: 18.91
D135: итого | F135: =SUM(F129:F134) -> 596 | G135: =SUM(G129:G134) -> 22 | H135: =SUM(H129:H134) -> 23 | I135: =SUM(I129:I134) -> 40 | J135: =SUM(J129:J134) -> 565 | L135: =SUM(L129:L134) -> 70
A136: 2 | B136: 1 | C136: завтрак2 | D136: закуска | E136: кукуруза после термической обработки | F136: 60 | G136: 3 | H136: 1 | I136: 16 | J136: 176 | K136: пром | L136: 7.17
D137: 2блюдо | E137: рыба с оващами | F137: 130 | G137: 9 | H137: 4 | I137: 2 | J137: 83 | K137: 54-5р | L137: 30.06
D138: гарнир | E138: рис отварной | F138: 150 | G138: 3 | H138: 5 | I138: 38 | J138: 213 | K138: 54-6г | L138: 12.92
D139: напиток | E139: компот из свеже мороженной брусника | F139: 200 | G139: 0 | H139: 0 | I139: 10 | J139: 43 | K139: 54-1хн | L139: 18.04
D140: хлеб бел | E140: хлеб пшенчный | F140: 30 | G140: 3 | H140: 2 | I140: 11 | J140: 56 | L140: 1.81
D143: итого | F143: =SUM(F136:F142) -> 570 | G143: =SUM(G136:G142) -> 18 | H143: =SUM(H136:H142) -> 12 | I143: =SUM(I136:I142) -> 77 | J143: =SUM(J136:J142) -> 571 | L143: 70
A144: =A129 -> 2 | B144: =B129 -> 1 | C144: Обед | D144: закуска | E144: огурец соленый в нарезке | F144: 60 | G144: 0 | H144: 0 | I144: 2 | J144: 8 | K144: 54-2з
D145: 1 блюдо | E145: суп картофельный с горохом | F145: 200 | G145: 7 | H145: 4 | I145: 18 | J145: 14 | K145: 54-8с | L145: 6.98
D146: 2 блюдо | E146: котлета по хлыновски | F146: 90 | G146: 15 | H146: 12 | I146: 11 | J146: 209 | K146: 54-7м | L146: 45.99
D147: гарнир | E147: макароны отварные | F147: 150 | G147: 5 | H147: 5 | I147: 35 | J147: 208 | K147: 54-1г | L147: 7.67
D148: напиток | E148: компот из малины | F148: 200 | G148: 0 | H148: 0 | I148: 7 | J148: 29 | K148: 54-31хн | L148: 7.62
D149: хлеб бел. | E149: хлеб пшеничный | F149: 28 | G149: 2 | H149: 2 | I149: 11 | J149: 56 | K149: пром | L149: 1.74
D151: итого | F151: =SUM(F144:F150) -> 728 | G151: =SUM(G144:G150) -> 29 | H151: =SUM(H144:H150) -> 23 | I151: =SUM(I144:I150) -> 84 | J151: =SUM(J144:J150) -> 524 | L151: =SUM(L144:L150) -> 70
A152: =A129 -> 2 | B152: =B129 -> 1 | C152: Итого за день: | F152: =F135+F151 -> 1324 | G152: =G135+G151 -> 51 | H152: =H135+H151 -> 46 | I152: =I135+I151 -> 124 | J152: =J135+J151 -> 1089 | L152: =L135+L151 -> 140
A153: 2 | B153: 2 | C153: Завтрак | D153: гор.блюдо | E153: запеканка творожная с джемом | F153: 150 | G153: 24 | H153: 16 | I153: 22 | J153: 332 | K153: 54-1т | L153: 45.54
E154: сыр твердых сортов в нарезке | F154: 60 | G154: 7 | H154: 9 | I154: 0 | J154: 108 | K154: 54-1з | L154: 14.13
D155: гор.напиток | E155: кофейный напиток молоком | F155: 200 | G155: 4 | H155: 4 | I155: 11 | J155: 91 | K155: 54-9г | L155: 8.09
D156: хлеб | E156: хлеб пшеничный | F156: 30 | G156: 2 | H156: 0 | I156: 11 | J156: 56 | K156: пром | L156: 2.24
D157: фрукты | E157: яблоко свежее | F157: 160 | G157: 0 | H157: 0 | I157: 5 | J157: 60 | K157: пром
D159: итого | F159: =SUM(F153:F158) -> 600 | G159: =SUM(G153:G158) -> 37 | H159: =SUM(H153:H158) -> 29 | I159: =SUM(I153:I158) -> 49 | J159: =SUM(J153:J158) -> 647 | L159: =SUM(L153:L158) -> 70
D160: закуска | E160: зеленый горошек после термической обработки | F160: 60 | G160: 3 | H160: 0 | I160: 6 | J160: 35 | K160: пром | L160: 5.01
A161: 2 | B161: 2 | C161: завтрак2 | D161: 2блюдо | E161: биточки "особые" | F161: 90 | G161: 14 | H161: 12 | I161: 11 | J161: 209 | K161: 54-6м | L161: 45.57
D162: гарнир | E162: каша гречневая рассыпчатая | F162: 150 | G162: 8 | H162: 6 | I162: 42 | J162: 262 | K162: 54-4г | L162: 9.15
D163: напиток | E163: компот из клюквы | F163: 200 | G163: 0 | H163: 0 | I163: 10 | J163: 43 | K163: 54-1хз | L163: 7.99
D164: хлеб бел | E164: хлеб пшеничный | F164: 30 | G164: 2 | H164: 0 | I164: 11 | J164: 56 | K164: пром | L164: 2.28
D166: итого | F166: =SUM(F160:F165) -> 530 | G166: =SUM(G160:G165) -> 27 | H166: =SUM(H160:H165) -> 18 | I166: =SUM(I160:I165) -> 80 | J166: =SUM(J160:J165) -> 605 | L166: 70
A167: =A153 -> 2 | B167: =B153 -> 2 | C167: Обед | D167: закуска | E167: огурец в нарезке | F167: 60 | G167: 0 | H167: 0 | I167: 1 | J167: 4 | K167: 54-2з | L167: 7.31
D168: 1 блюдо | E168: суп с вермимшелью | F168: 200 | G168: 2 | H168: 2 | I168: 21 | J168: 111 | K168: 54-6с | L168: 5.66
D169: 2 блюдо | E169: котлета рыбная | F169: 90 | G169: 10 | H169: 5 | I169: 5 | J169: 102 | K169: 54-11р | L169: 30.06
D170: гарнир | E170: картофельное пюре | F170: 150 | G170: 3 | H170: 6 | I170: 24 | J170: 158 | K170: 54-11г | L170: 11.88
D171: напиток | E171: компот из яблока | F171: 200 | G171: 0 | H171: 0 | I171: 10 | J171: 43 | K171: 54-6хн | L171: 12.27
D172: хлеб бел. | E172: хлеб пшеничный | F172: 30 | G172: 2 | H172: 0 | I172: 15 | J172: 73 | L172: 2.82
D173: хлеб черн.
D176: итого | F176: =SUM(F167:F175) -> 730 | G176: =SUM(G167:G175) -> 17 | H176: 13 | I176: 76 | J176: 491 | L176: =SUM(L167:L175) -> 70
A177: =A153 -> 2 | B177: =B153 -> 2 | C177: Итого за день: | F177: =F159+F176 -> 1330 | G177: =G159+G176 -> 54 | H177: =H159+H176 -> 42 | I177: =I159+I176 -> 125 | J177: =J159+J176 -> 1138 | L177: 140
A178: 2 | B178: 3 | C178: Завтрак | D178: гор.блюдо | E178: каша молочная пшеничная | F178: 200 | G178: 27 | H178: 8 | I178: 32 | J178: 314 | K178: 54-12м | L178: 20.98
E179: бутерброд с джемом | F179: 70 | G179: 0 | H179: 0 | I179: 50 | J179: 85 | K179: 54-19хз | L179: 27.35
D180: гор.напиток | E180: чай с сахаром и лимоном | F180: 200 | G180: 0 | H180: 0 | I180: 7 | J180: 28 | K180: 54-45гн | L180: 3.68
D181: фрукты | E181: яблоко свежее | F181: 143 | G181: 0 | H181: 0 | I181: 10 | J181: 47 | K181: пром | L181: 17.99
D184: итого | F184: =SUM(F178:F183) -> 613 | G184: =SUM(G178:G183) -> 27 | H184: =SUM(H178:H183) -> 8 | I184: =SUM(I178:I183) -> 99 | J184: =SUM(J178:J183) -> 474 | L184: =SUM(L178:L183) -> 70
A185: 2 | B185: 3 | C185: автрак2 | D185: 2блюдо | E185: гуляш из филе курицы | F185: 130 | G185: 13 | H185: 11 | I185: 3 | J185: 169 | K185: 54-2м | L185: 60.09
D186: гарнир | E186: капуста тушеная | F186: 150 | G186: 3 | H186: 26 | I186: 10 | J186: 286 | K186: 54-19г
D187: напиток | E187: компот из вишни | F187: 200 | G187: 0 | H187: 0 | I187: 10 | J187: 43 | K187: 54-6хн | L187: 7.5
D188: хлеб бел | E188: хлеб пшеничный | F188: 30 | G188: 2 | H188: 0 | I188: 15 | J188: 73 | K188: пром | L188: 2.41
D190: итого | F190: 510 | G190: =SUM(G185:G189) -> 18 | H190: =SUM(H185:H189) -> 37 | I190: =SUM(I185:I189) -> 38 | J190: =SUM(J185:J189) -> 571 | L190: 70
A191: =A178 -> 2 | B191: =B178 -> 3 | C191: Обед | D191: закуска
D192: 1 блюдо | E192: суп с фасолью | F192: 200 | G192: 7 | H192: 4 | I192: 17 | J192: 135 | K192: 54-9с | L192: 8.99
D193: 2 блюдо | E193: котлета из филе курицы | F193: 100 | G193: 14 | H193: 3 | I193: 9 | J193: 128 | K193: 54-5м | L193: 43.16
D194: гарнир | E194: рис припущенный | F194: 150 | G194: 3 | H194: 5 | I194: 15 | J194: 36 | K194: 54-7г | L194: 10.34
D195: напиток | E195: компот из кураги | F195: 200 | G195: 0 | H195: 0 | I195: 27 | J195: 110 | K195: 54-4хн | L195: 5.39
D196: хлеб бел. | E196: хлеб пшеничный | F196: 60 | G196: 2 | H196: 0 | I196: 11 | J196: 56 | K196: пром | L196: 2.12
D199: итого | F199: =SUM(F191:F198) -> 710 | G199: =SUM(G191:G198) -> 26 | H199: =SUM(H191:H198) -> 12 | I199: =SUM(I191:I198) -> 79 | J199: =SUM(J191:J198) -> 465 | L199: =SUM(L191:L198) -> 70
A200: =A178 -> 2 | B200: =B178 -> 3 | C200: Итого за день: | F200: =F184+F199 -> 1323 | G200: =G184+G199 -> 53 | H200: =H184+H199 -> 20 | I200: =I184+I199 -> 178 | J200: =J184+J199 -> 939 | L200: =L184+L199 -> 140
A201: 2 | B201: 4 | C201: Завтрак | D201: гор.блюдо | E201: каша рисовая с маслом сливочным | F201: 210 | G201: 23 | H201: 27 | I201: 93 | J201: 226 | K201: 54-18к | L201: 19.76
E202: бутерброд с колбасой в/к сервелат | F202: 60 | G202: 4 | H202: 7 | I202: 7 | J202: 118 | K202: 6ср2004 | L202: 36.17
D203: гор.напиток | E203: чай с молоком | F203: 200 | G203: 2 | H203: 1 | I203: 9 | J203: 51 | K203: 54-6гн | L203: 14.07
D204: фрукт | E204: яблко свежее | F204: 150 | G204: 0 | H204: 0 | I204: 5 | J204: 60 | K204: пром
D206: итого | F206: =SUM(F201:F205) -> 620 | G206: =SUM(G201:G205) -> 29 | H206: =SUM(H201:H205) -> 35 | I206: =SUM(I201:I205) -> 114 | J206: =SUM(J201:J205) -> 455 | L206: =SUM(L201:L205) -> 70
A207: 2 | B207: 4 | C207: завтрак2 | D207: закуска | E207: помидоры свежие в нарезке | F207: 60 | G207: 0 | H207: 0 | I207: 2 | J207: 11 | K207: 54-3з | L207: 7.31
D208: 2блюдо | E208: шницель из филе курицы | F208: 90 | G208: 14 | H208: 4 | I208: 9 | J208: 128 | K208: 54-5м | L208: 33.07
D209: гарнир | E209: картофель отварной | F209: 150 | G209: 4 | H209: 5 | I209: 31 | J209: 190 | K209: 54-10г | L209: 11.03
D210: напиток | E210: компот из черной смородины | F210: 200 | G210: 0 | H210: 0 | I210: 11 | J210: 46 | K210: 54-2хн | L210: 16.44
D211: хлеб бел | E211: хлеб пшеничный | F211: 30 | G211: 2 | H211: 0 | I211: 11 | J211: 56 | L211: 2.15
D213: итого | L213: 70
A214: =A201 -> 2 | B214: =B201 -> 4 | C214: Обед | D214: закуска | E214: кукуруза | F214: 60 | G214: 3 | H214: 0 | I214: 6 | J214: 35 | K214: пром
D215: 1 блюдо | E215: рассольник домашний | F215: 200 | G215: 2 | H215: 5 | I215: 13 | J215: 105 | K215: 54-4с | L215: 16.26
D216: 2 блюдо | E216: плов из филе курицы | F216: 230 | G216: 14 | H216: 11 | I216: 6 | J216: 188 | K216: 54-6м | L216: 36.37
D217: напиток | E217: компот из клубники | F217: 200 | G217: 0 | H217: 0 | I217: 7 | J217: 29 | K217: 54-12хн | L217: 8.44
D218: хлеб бел. | E218: хлеб пшеничный | F218: 30 | G218: 2 | H218: 0 | I218: 15 | J218: 73 | L218: 1.26
D219: хлеб черн.
D221: итого | F221: =SUM(F214:F220) -> 720 | G221: =SUM(G214:G220) -> 21 | H221: =SUM(H214:H220) -> 16 | I221: =SUM(I214:I220) -> 47 | J221: =SUM(J214:J220) -> 430 | L221: =SUM(L214:L220) -> 62.33
A222: =A201 -> 2 | B222: =B201 -> 4 | C222: Итого за день: | F222: =F206+F221 -> 1340 | G222: =G206+G221 -> 50 | H222: =H206+H221 -> 51 | I222: =I206+I221 -> 161 | J222: =J206+J221 -> 885 | L222: =L206+L221 -> 132.33
A223: 2 | B223: 5 | C223: Завтрак | D223: гор.блюдо | E223: биточек из курицы | F223: 80 | G223: 17 | H223: 4 | I223: 12 | J223: 152 | K223: 54-23м | L223: 30.22
D224: гор.блюдо | E224: каша гречневая рассыпчатая | F224: 150 | G224: 8 | H224: 6 | I224: 42 | J224: 262 | K224: 54-4г | L224: 9.15
E225: бутерброд с сыром | F225: 60 | G225: 7 | H225: 9 | I225: 0 | J225: 109 | K225: 54-1хз | L225: 10.32
D226: гор.напиток | E226: чай с сахаром | F226: 200 | G226: 0 | H226: 0 | I226: 7 | J226: 27 | K226: 54-2гн | L226: 2.12
D227: фрукт | E227: яблоко свежее | F227: 144 | I227: 10 | J227: 47 | L227: 18.19
D229: итого | F229: =SUM(F223:F227) -> 634 | G229: =SUM(G223:G226) -> 32 | H229: =SUM(H223:H226) -> 19 | I229: =SUM(I223:I227) -> 71 | J229: =SUM(J223:J227) -> 597 | L229: =SUM(L223:L227) -> 70
A230: 2 | B230: 5 | C230: завтрак2 | D230: закуска | E230: кукуруза десертная | F230: 60 | G230: 3 | H230: 1 | I230: 16 | J230: 35 | L230: 4.29
D231: 2блюдо | E231: печень говяжья по-строгановски | F231: 130 | G231: 15 | H231: 13 | I231: 2 | J231: 188 | K231: 54-18м | L231: 45.24
D232: гарнир | E232: макароны отварные | F232: 150 | G232: 5 | H232: 5 | I232: 35 | J232: 208 | K232: 54-1г | L232: 11.31
D233: напиток | E233: компот изсухофруктов | F233: 200 | G233: 0 | H233: 0 | I233: 27 | J233: 110 | K233: 54-6хн | L233: 6.8
D234: хлеб бел | E234: хлеб пшеничный | F234: 30 | G234: 2 | H234: 0 | I234: 11 | J234: 56 | L234: 2.36
F235: =SUM(F230:F234) -> 570 | G235: =SUM(G230:G234) -> 25 | H235: =SUM(H230:H234) -> 19 | I235: =SUM(I230:I234) -> 91 | J235: =SUM(J230:J234) -> 597 | L235: =SUM(L230:L234) -> 70
A236: =A223 -> 2 | B236: =B223 -> 5 | C236: Обед | D236: закуска | E236: помидоры в нарезке | F236: 60 | G236: 0 | H236: 0 | I236: 2 | J236: 11 | K236: 54-3з
D237: 1 блюдо | E237: борщ со свежей капустой | F237: 225 | G237: 5 | H237: 3 | I237: 19 | J237: 225 | K237: 54-7с | L237: 8.7
D238: 2 блюдо | E238: жаркое по-домашнему | F238: 195 | G238: 17 | H238: 17 | I238: 19 | J238: 302 | K238: 436 | L238: 48.69
D239: гарнир
D240: напиток | E240: компот из апельсин | F240: 200 | G240: 0 | H240: 0 | I240: 7 | J240: 39 | K240: 54-9хн | L240: 10.36
D241: хлеб бел. | E241: хлеб пшеничный | F241: 30 | G241: 2 | H241: 0 | I241: 11 | J241: 56 | L241: 2.25
D244: итого | F244: =SUM(F236:F243) -> 710 | G244: =SUM(G236:G243) -> 24 | H244: =SUM(H236:H243) -> 20 | I244: =SUM(I236:I243) -> 58 | J244: 622 | L244: =SUM(L236:L243) -> 70
... 2 more rows
